bitfinex-derivatives/quotes_SOLF0:USTF0_20250127
["timestamp","ask_amount","ask_price","bid_price","bid_amount"]
[1737965336524,1.3675,225.78,225.62,4.4341]
[1737965336822,1.3675,225.78,225.57,1.4198]
[1737965337023,4.433,225.68,225.6,4.4345]
[1737965337224,0.03015421,225.7,225.57,1.4198]
[1737965337623,4.4328,225.69,225.62,4.4341]
[1737965337815,0.02926943,225.66,225.57,1.4198]
[1737965338021,1.3675,225.78,225.57,1.4198]
[1737965338223,0.02823509,225.66,225.61,4.4344]
[1737965338524,4.4329,225.69,225.61,4.4344]
[1737965338725,0.03353293,225.66,225.61,4.4344]
[1737965339122,0.03353293,225.66,225.6,4.4344]
[1737965339424,0.03353293,225.66,225.57,1.4198]
[1737965340019,0.03353293,225.66,225.52,39.91964837]
[1737965340427,1.3378,225.74,225.53,0.78272041]
[1737965340727,1.3378,225.74,225.52,39.91964837]
[1737965340922,0.02799831,225.66,225.53,0.78271691]
[1737965341125,0.02799831,225.66,225.46,4.2036]
[1737965341422,1.3433,225.66,225.47,0.78292596]
[1737965341622,0.03260846,225.58,225.52,39.91964837]
[1737965342024,4.433,225.68,225.57,4.4352]
[1737965342223,0.03003408,225.57,225.56,39.91964837]
[1737965342528,4.4334,225.67,225.57,4.4351]
[1737965342728,39.91964837,225.71,225.52,39.91964837]
[1737965342928,39.91964837,225.71,225.54,0.02946]
[1737965343129,39.91964837,225.71,225.52,39.91964837]
[1737965343829,0.03024348,225.64,225.59,0.03389878]
[1737965345137,1.3414,225.82,225.6,39.91964837]
[1737965345336,1.4368,225.86,225.66,39.91964837]
[1737965345727,4.4298,225.85,225.66,39.91964837]
[1737965346033,1.4368,225.86,225.66,39.91964837]
[1737965346335,0.03058074,225.78,225.73,0.02874602]
[1737965347137,4.46178074,225.78,225.73,0.02874602]
[1737965347334,0.03058074,225.78,225.73,0.02874602]
[1737965348539,0.03058074,225.78,225.74,4.4317]
[1737965348733,0.03058074,225.78,225.73,0.02874602]
[1737965348938,4.4318,225.74,225.73,0.02874602]
[1737965349242,0.03058074,225.78,225.5,39.91964837]
[1737965349243,39.91964837,225.76,225.5,39.91964837]
[1737965349537,39.91964837,225.7,225.52,0.78264595]
[1737965349935,39.91964837,225.7,225.5,39.91964837]
[1737965350133,39.91964837,225.66,225.46,42.63954837]
[1737965350339,0.03300827,225.63,225.58,0.03068411]
[1737965352132,4.4342,225.62,225.58,0.03068411]
[1737965352530,0.03300827,225.63,225.58,0.03068411]
[1737965352834,4.4347,225.6,225.58,0.03068411]
[1737965353039,0.03300827,225.63,225.51,0.15719]
[1737965353040,39.91964837,225.62,225.51,0.15719]
[1737965353239,39.91964837,225.58,225.51,0.15719]
[1737965353432,4.436,225.53,225.51,0.15719]
[1737965353635,39.91964837,225.58,225.36,1.445]
[1737965353836,39.91964837,225.58,225.37,0.78318608]
[1737965354033,4.4364,225.51,225.37,0.78318608]
[1737965354244,0.0304009,225.5,225.37,0.78318608]
[1737965354936,0.0304009,225.5,225.28,82.94]
[1737965355133,0.0304009,225.5,225.34,0.78333676]
[1737965355339,4.4366,225.5,225.39,4.4386]
[1737965355537,0.03037316,225.44,225.31,1.417]
[1737965355733,0.03037316,225.44,225.34,0.78331539]
[1737965355933,0.03037316,225.44,225.38,39.91964837]
[1737965356142,39.91964837,225.58,225.38,39.91964837]
[1737965356334,39.91964837,225.58,225.31,1.417]
[1737965356335,1.3639,225.61,225.42,39.91964837]
[1737965356541,1.3639,225.61,225.5,4.4364]
[1737965356846,39.91964837,225.7,225.5,39.91964837]
[1737965357441,0.02968179,225.62,225.58,0.03262939]
[1737965357847,39.91964837,225.74,225.51,0.78277583]
[1737965358143,0.03277801,225.62,225.58,0.02968405]
[1737965358535,1.4264,225.73,225.51,0.78279981]
[1737965358738,0.033085,225.62,225.59,4.4347]
[1737965358940,0.033085,225.62,225.58,0.03035478]
[1737965359147,1.4264,225.73,225.58,39.91964837]
[1737965359344,2.7106,225.75,225.58,0.02917302]
[1737965359644,0.03074093,225.68,225.46,39.91964837]
[1737965359840,39.91964837,225.65,225.47,1.319]
[1737965360343,39.91964837,225.65,225.48,0.78293793]
[1737965360547,39.91964837,225.69,225.5,39.91964837]
[1737965360750,39.91964837,225.69,225.48,0.78293793]
[1737965360935,39.91964837,225.65,225.48,0.78293793]
[1737965361139,0.03123974,225.61,225.51,0.78293793]
[1737965361336,0.03123974,225.61,225.5,39.91964837]
[1737965361645,39.91964837,225.69,225.5,39.91964837]
[1737965361646,39.91964837,225.69,225.51,0.78275796]
[1737965361845,0.03333551,225.58,225.51,0.78275796]
[1737965362046,0.03333551,225.58,225.47,1.319]
[1737965362342,0.03333551,225.58,225.49,4.4366]
[1737965362539,0.03333551,225.58,225.42,39.91964837]
[1737965362742,4.436,225.53,225.44,5.8235]
[1737965362939,39.91964837,225.61,225.38,39.91964837]
[1737965363145,0.02861586,225.51,225.42,0.78313945]
[1737965364050,0.02861586,225.51,225.42,40.70278782]
[1737965364243,0.02861586,225.51,225.46,4.4371]
[1737965364444,0.02861586,225.51,225.43,2.1955788]
[1737965364644,0.02861586,225.51,225.44,0.78312814]
[1737965365044,0.02861586,225.51,225.43,5.8503]
[1737965365245,0.02861586,225.51,225.43,1.4125]
[1737965365446,0.02861586,225.51,225.44,0.78310021]
[1737965366151,39.91964837,225.69,225.46,39.91964837]
[1737965366344,1.3636,225.68,225.47,0.78310021]
[1737965366545,4.4342,225.62,225.52,4.4361]
[1737965366741,39.91964837,225.65,225.43,1.4125]
[1737965366946,39.91964837,225.61,225.44,0.78305464]
[1737965367146,39.91964837,225.57,225.36,41.25464837]
[1737965367355,0.03375472,225.55,225.5,0.0329358]
[1737965367649,4.46618025,225.55,225.5,0.03127958]
[1737965367951,0.03048025,225.55,225.5,0.03127958]
[1737965368152,4.4371,225.48,225.38,4.4388]
[1737965368345,0.03048025,225.55,225.39,0.78328421]
[1737965368545,1.3636,225.56,225.36,41.25464837]
[1737965368747,1.3636,225.56,225.37,0.78331683]
[1737965368947,39.91964837,225.53,225.37,0.78331683]
[1737965369147,39.91964837,225.53,225.32,39.91964837]
[1737965369148,39.91964837,225.49,225.36,0.78331683]
[1737965369345,39.91964837,225.45,225.24,39.91964837]
[1737965369544,39.91964837,225.45,225.21,1.3278]
[1737965369545,1.3608,225.44,225.28,4.4408]
[1737965369751,1.3608,225.44,225.29,0.78361865]
[1737965369945,4.4392,225.37,225.3,0.78361865]
[1737965370253,4.4392,225.37,225.21,21.88470406]
[1737965370552,4.4392,225.37,225.23,0.78367804]
[1737965370853,0.0334476,225.32,225.23,0.78367804]
[1737965371152,0.0334476,225.32,225.24,39.91964837]
[1737965371353,0.0334476,225.32,225.3,4.4403]
[1737965371546,1.4236,225.43,225.31,0.78367804]
[1737965371748,4.4386,225.4,225.28,4.4408]
[1737965372057,39.91964837,225.41,225.22,1.4203]
[1737965372354,1.4236,225.43,225.22,1.4203]
[1737965372355,1.4236,225.43,225.24,39.91964837]
[1737965372555,0.0296183,225.34,225.31,4.4402]
[1737965372745,4.4381,225.42,225.31,4.4402]
[1737965372950,1.4236,225.43,225.24,39.91964837]
[1737965373152,0.02805233,225.35,225.3,0.03314478]
[1737965374453,0.02805233,225.35,225.33,4.4398]
[1737965375554,1.4365,225.48,225.32,39.91964837]
[1737965375753,1.3195,225.5,225.33,0.78354672]
[1737965375952,4.438,225.43,225.28,39.91964837]
[1737965376249,39.91964837,225.45,225.29,0.78358634]
[1737965376455,39.91964837,225.45,225.25,0.78358634]
[1737965376652,1.4365,225.49,225.26,0.78358634]
[1737965376950,0.02815569,225.37,225.33,0.03024101]
[1737965377354,39.91964837,225.41,225.3,4.4404]
[1737965377554,0.03101717,225.37,225.33,0.03350986]
[1737965378250,4.47021717,225.37,225.33,0.03350986]
[1737965379156,0.03101717,225.37,225.33,0.03350986]
[1737965379455,1.717e-05,225.37,225.33,0.03350986]
[1737965379655,1.717e-05,225.37,225.36,4.4393]
[1737965380855,1.717e-05,225.37,225.34,5.7819]
[1737965381053,1.717e-05,225.37,225.33,0.03350986]
[1737965383954,1.717e-05,225.37,225.36,4.4393]
[1737965386256,1.717e-05,225.37,225.36,44.35894837]
[1737965387163,39.91964837,225.53,225.34,2.8011]
[1737965387359,39.91964837,225.53,225.3,1.4245]
[1737965387557,4.4382,225.42,225.33,4.4399]
[1737965387955,4.439,225.38,225.3,1.4245]
[1737965388161,4.439,225.38,225.35,0.03238342]
[1737965388565,0.02820041,225.4,225.35,0.03238342]
[1737965389567,0.02820041,225.4,225.36,4.4391]
[1737965390164,0.02820041,225.4,225.35,0.03238342]
[1737965390757,0.02820041,225.4,225.37,4.439]
[1737965391564,0.02820041,225.4,225.35,0.03238342]
[1737965391767,0.02820041,225.4,225.38,4.4388]
[1737965391963,0.02820041,225.4,225.35,0.03238342]
[1737965392569,1.3665,225.56,225.36,23.07362845]
[1737965393076,23.07362845,225.54,225.32,23.07362845]
[1737965393373,1.3665,225.56,225.33,0.78354569]
[1737965393774,0.03312301,225.47,225.42,0.03257264]
[1737965393973,0.03312301,225.47,225.33,0.78354569]
[1737965394167,0.03312301,225.47,225.42,0.03188428]
[1737965394368,23.07362845,225.5,225.3,1.3347]
[1737965394579,0.02902605,225.47,225.31,0.78357921]
[1737965394776,4.4388,225.39,225.31,0.78357921]
[1737965394977,23.07362845,225.5,225.3,4.4403]
[1737965395473,0.02874957,225.42,225.38,0.03185412]
[1737965395678,0.02874957,225.42,225.24,1.4176]
[1737965395679,0.02874957,225.42,225.24,24.49122845]
[1737965395975,2.8343,225.45,225.25,0.78381021]
[1737965396178,4.4395,225.35,225.28,4.4408]
[1737965396371,2.8343,225.45,225.28,4.4408]
[1737965396772,4.4394,225.36,225.34,0.0286432]
[1737965397373,0.03029414,225.39,225.34,0.0286432]
[1737965397578,4.4395,225.35,225.24,23.07362845]
[1737965398075,4.4395,225.35,225.27,4.441]
[1737965398376,4.4395,225.35,225.24,23.07362845]
[1737965398770,0.03057668,225.32,225.27,0.02934128]
[1737965398975,2.8343,225.45,225.25,0.78383457]
[1737965399176,2.8343,225.45,225.32,4.4399]
[1737965399377,0.03364857,225.37,225.28,23.07362845]
[1737965399675,0.03364857,225.37,225.29,0.78364544]
[1737965399871,0.03364857,225.37,225.3,0.03056014]
[1737965400275,0.03364857,225.37,225.3,0.81420558]
[1737965400470,0.03364857,225.37,225.3,0.03056014]
[1737965402275,23.07362845,225.34,225.14,4.0271]
[1737965402486,4.4413,225.27,225.18,4.4428]
[1737965402780,1.3213,225.33,225.15,0.78395663]
[1737965402986,4.4419,225.23,225.16,0.78412457]
[1737965403279,23.07362845,225.26,225.08,82.98]
[1737965403485,0.02927926,225.22,225.08,82.98]
[1737965403886,23.07362845,225.22,225.08,82.98]
[1737965404081,0.02935362,225.17,225.08,82.98]
[1737965404283,0.02935362,225.17,225.05,182.57570476]
[1737965404284,4.4435,225.15,225.05,182.57570476]
[1737965404482,0.02935362,225.17,225.05,182.57570476]
[1737965404681,37.62261704,225.18,225.05,182.57570476]
[1737965404879,0.03249137,225.13,225.05,182.57570476]
[1737965405077,0.03249137,225.13,225.06,0.78447153]
[1737965405578,39.00081704,225.32,225.09,37.62261704]
[1737965405782,1.3782,225.32,225.13,37.62261704]
[1737965406086,37.62261704,225.36,225.17,37.62261704]
[1737965406287,4.4398,225.34,225.22,4.442]
[1737965406491,37.62261704,225.36,225.18,1.3513]
[1737965406784,0.03387947,225.3,225.26,0.02942682]
[1737965407183,0.03387947,225.3,225.14,2.673]
[1737965407390,37.62261704,225.28,225.15,0.7841302]
[1737965407882,37.62261704,225.28,225.09,1.3513]
[1737965408084,37.62261704,225.28,225.1,0.78428332]
[1737965408283,37.62261704,225.24,225.1,0.78428332]
[1737965408485,0.03027943,225.21,225.07,0.78428332]
[1737965408686,0.03027943,225.21,225.04,37.62261704]
[1737965408886,37.62261704,225.24,225.05,0.78439611]
[1737965409080,0.02860033,225.15,225.05,0.78439611]
[1737965409788,0.02860033,225.15,225.08,4.4447]
[1737965409989,0.02860033,225.15,225.04,37.62261704]
[1737965410282,0.02860033,225.15,225.06,4.4451]
[1737965410690,0.02860033,225.15,225.07,0.78443668]
[1737965411286,0.02860033,225.15,225.04,37.62261704]
[1737965411587,0.02860033,225.15,225.05,0.78443617]
[1737965412190,4.4441,225.12,225.01,0.78443617]
[1737965412491,0.02860033,225.15,225.02,0.78460687]
[1737965412691,1.3539,225.19,225.02,0.78460687]
[1737965412892,0.03206025,225.11,225.04,37.62261704]
[1737965413089,0.03206025,225.11,225.05,0.78460687]
[1737965413291,37.62261704,225.43,225.1,88.47523408]
[1737965413593,6.12532892,225.45,225.28,37.62261704]
[1737965413791,3.05185203,225.44,225.24,37.62261704]
[1737965414195,6.12532892,225.45,225.28,37.62261704]
[1737965414389,6.12532892,225.45,225.33,37.62261704]
[1737965414589,0.03332149,225.39,225.34,0.03081522]
[1737965415790,1.3654,225.49,225.36,37.62261704]
[1737965416088,1.3654,225.49,225.12,37.62261704]
[1737965416089,37.62261704,225.4,225.2,37.62261704]
[1737965416394,37.62261704,225.36,225.16,37.62261704]
[1737965416593,4.4414,225.26,225.16,37.62261704]
[1737965416792,37.62261704,225.31,225.09,37.62261704]
[1737965416992,37.62261704,225.27,225.03,5.16]
[1737965417185,4.4423,225.21,225.18,0.03197585]
[1737965417385,4.4423,225.21,225.05,37.62261704]
[1737965417590,1.4229,225.26,225.05,37.62261704]
[1737965417790,1.4229,225.26,225.09,37.62261704]
[1737965417986,40.44061704,225.35,225.17,37.62261704]
[1737965418288,44.88011704,225.35,225.2,4.4423]
[1737965418487,0.02878089,225.28,225.17,37.62261704]
[1737965418693,0.02878089,225.28,225.18,1.4636]
[1737965418894,0.02878089,225.28,225.18,1.3226]
[1737965419397,0.02878089,225.28,225.16,4.4432]
[1737965419796,1.4229,225.34,225.13,37.62261704]
[1737965420094,1.4368,225.35,225.21,37.62261704]
[1737965421295,0.02859491,225.3,225.26,0.02927066]
[1737965423599,0.02859491,225.3,225.26,4.47037066]
[1737965423791,0.02859491,225.3,225.26,0.02927066]
[1737965424295,0.02859491,225.3,225.09,37.62261704]
[1737965424494,37.62261704,225.27,225.1,0.78431054]
[1737965424694,37.62261704,225.27,225.06,0.78438079]
[1737965424889,37.62261704,225.27,225.05,37.62261704]
[1737965425105,37.62261704,225.27,225.06,0.78431978]
[1737965425398,4.441,225.28,225.18,4.4427]
[1737965425700,0.02935865,225.19,225.09,37.62261704]
[1737965425900,37.62261704,225.31,225.09,37.62261704]
[1737965426197,0.02879609,225.16,225.15,4.4434]
[1737965426493,4.4412,225.27,225.15,4.4433]
[1737965426698,0.03069245,225.18,225.1,23.12426182]
[1737965426900,1.3886,225.34,225.14,23.12426182]
[1737965427497,1.3886,225.34,225.18,23.12426182]
[1737965427698,1.3886,225.34,225.15,0.1721]
[1737965427898,1.3886,225.34,225.16,1.3509]
[1737965428099,4.4401,225.32,225.22,4.442]
[1737965428300,1.3886,225.34,225.16,1.3509]
[1737965428492,0.03375586,225.27,225.23,0.02967568]
[1737965429899,0.03375586,225.27,225.24,4.4416]
[1737965430101,0.03375586,225.27,225.23,0.02967568]
[1737965432505,0.03375586,225.27,225.23,4.47147568]
[1737965432796,1.4287,225.39,225.23,0.02967568]
[1737965433002,23.12426182,225.44,225.33,4.4398]
[1737965433305,1.4158,225.45,225.3,23.12426182]
[1737965433701,23.12426182,225.52,225.3,23.12426182]
[1737965433910,3.07426529,225.51,225.38,23.12426182]
[1737965434101,6.12532892,225.55,225.38,23.12426182]
[1737965434298,6.12532892,225.55,225.47,4.437]
[1737965434604,6.12532892,225.55,225.46,23.12426182]
[1737965434805,6.12532892,225.55,225.47,0.1718]
[1737965434994,6.12532892,225.55,225.39,5.22]
[1737965435194,0.02810787,225.53,225.4,0.1718]
[1737965435402,0.02810787,225.53,225.49,0.033194]
[1737965435598,0.02810787,225.53,225.4,0.1718]
[1737965435803,1.3214,225.68,225.5,23.12426182]
[1737965436001,6.12532892,225.76,225.54,23.12426182]
[1737965436203,23.12426182,225.68,225.46,23.12426182]
[1737965436404,23.12426182,225.64,225.42,23.12426182]
[1737965436599,23.12426182,225.64,225.4,1.05911144]
[1737965436600,4.4346,225.6,225.43,42.6878087]
[1737965436814,37.46683061,225.6,225.4,1.05911144]
[1737965437006,0.03271604,225.54,225.49,0.03289725]
[1737965437708,4.4365,225.51,225.49,9.725e-05]
[1737965438107,1.3214,225.5,225.49,9.725e-05]
[1737965438407,1.4355,225.53,225.49,9.725e-05]
[1737965439209,37.46683061,225.52,225.49,9.725e-05]
[1737965439712,37.46683061,225.52,225.26,0.9953]
[1737965440004,37.46683061,225.47,225.26,0.9953]
[1737965440208,4.4386,225.4,225.26,1.1655]
[1737965440412,1.3712,225.46,225.26,1.1655]
[1737965440609,1.3712,225.46,225.27,0.78369696]
[1737965440809,1.3712,225.46,225.33,4.4398]
[1737965441011,0.03164989,225.38,225.34,0.03203455]
[1737965443813,0.03164989,225.38,225.36,4.4392]
[1737965444113,37.46683061,225.51,225.34,0.03203455]
[1737965444406,2.8403,225.52,225.33,37.46683061]
[1737965444712,1.398,225.52,225.34,0.78340379]
[1737965444909,1.398,225.52,225.37,37.46683061]
[1737965445109,37.46683061,225.59,225.37,37.46683061]
[1737965445309,37.46683061,225.59,225.42,0.03243347]
[1737965445310,0.03210695,225.47,225.42,0.03243347]
[1737965445504,0.03210695,225.47,225.42,4.47043347]
[1737965445709,0.03210695,225.47,225.42,0.03243347]
[1737965448003,0.03210695,225.47,225.42,4.47053347]
[1737965448201,0.03210695,225.47,225.42,0.03243347]
[1737965449712,0.03210695,225.47,225.43,4.4378]
[1737965449911,0.03210695,225.47,225.42,0.03243347]
[1737965450511,0.03210695,225.47,225.45,4.4374]
[1737965450710,1.4201,225.58,225.42,0.03243347]
[1737965450914,1.4201,225.58,225.39,0.78322049]
[1737965451211,1.3368,225.63,225.46,37.46683061]
[1737965451516,1.3368,225.63,225.51,4.4363]
[1737965451706,1.3368,225.63,225.46,37.46683061]
[1737965451906,0.03014685,225.59,225.55,0.03145325]
[1737965452606,37.46683061,225.75,225.55,0.03145325]
[1737965452805,2.7399,225.77,225.58,37.46683061]
[1737965453209,2.7399,225.77,225.62,37.46683061]
[1737965453409,6.12532892,225.82,225.62,37.46683061]
[1737965453609,6.12532892,225.82,225.63,1.4911]
[1737965453805,6.12532892,225.82,225.66,37.46683061]
[1737965454013,0.03043996,225.74,225.7,0.02881046]
[1737965454706,6.12532892,225.82,225.77,4.4311]
[1737965455012,1.3889,225.95,225.77,37.46683061]
[1737965455815,38.85573061,225.95,225.72,37.46683061]
[1737965456111,0.03117672,225.88,225.84,0.02885379]
[1737965459215,0.03117672,225.88,225.8,37.45555638]
[1737965460116,0.03117672,225.88,225.85,4.4296]
[1737965460316,0.03117672,225.88,225.84,37.46683061]
[1737965460513,0.03117672,225.88,225.86,4.4294]
[1737965460712,2.7628,226.03,225.82,0.029667]
[1737965460713,37.46683061,225.96,225.82,0.029667]
[1737965461018,0.02927535,225.89,225.73,82.96]
[1737965461219,0.02927535,225.89,225.87,0.02914012]
[1737965461417,1.3265,225.91,225.87,0.02914012]
[1737965461616,0.02992676,225.9,225.78,4.4309]
[1737965461809,0.02992676,225.9,225.87,0.03354312]
[1737965462214,37.46683061,225.96,225.76,37.46683061]
[1737965462418,4.45693871,225.91,225.86,0.0286338]
[1737965462618,0.02833871,225.91,225.86,0.0286338]
[1737965462915,0.02833871,225.91,225.88,4.429]
[1737965463121,0.02833871,225.91,225.86,0.0286338]
[1737965463314,0.02833871,225.91,225.88,37.46683061]
[1737965464014,0.02833871,225.91,225.86,0.0286338]
[1737965464516,4.4288,225.9,225.86,0.0286338]
[1737965464722,0.02833871,225.91,225.86,0.0286338]
[1737965469914,0.02833871,225.91,225.9,4.4287]
[1737965470528,0.02833871,225.91,225.86,0.0286338]
[1737965471918,37.46683061,225.88,225.73,82.96]
[1737965472314,191.0,225.95,225.78,37.46683061]
[1737965472716,4.4285,225.91,225.78,37.46683061]
[1737965472916,191.0,225.95,225.74,37.46683061]
[1737965473116,37.46683061,225.92,225.73,82.96]
[1737965473320,0.0281187,225.87,225.82,0.03303229]
[1737965473916,0.0281187,225.87,225.82,37.4998629]
[1737965474227,0.0015187,225.87,225.86,37.46683061]
[1737965474420,0.0015187,225.87,225.82,0.03303229]
[1737965475628,37.46834931,225.87,225.73,82.96]
[1737965475924,1.4562,225.86,225.73,82.96]
[1737965476626,37.46683061,225.83,225.56,82.88]
[1737965476830,37.46683061,225.79,225.58,37.46683061]
[1737965477025,1.38005455,225.82,225.77,2.082e-05]
[1737965477234,37.46683061,225.78,225.56,82.88]
[1737965477528,1.3478,225.82,225.58,37.46683061]
[1737965477723,4.4327,225.7,225.59,4.4347]
[1737965477930,4.4327,225.7,225.56,82.88]
[1737965478129,1.3478,225.82,225.59,37.46683061]
[1737965478428,0.03010432,225.65,225.61,0.02813705]
[1737965478826,37.46683061,225.75,225.56,82.88]
[1737965479024,0.0294892,225.65,225.61,0.03101035]
[1737965479427,4.4314,225.77,225.63,37.46683061]
[1737965479632,1.3478,225.82,225.67,37.46683061]
[1737965479831,1.4562,225.86,225.71,37.46683061]
[1737965480030,192.3849,225.97,225.8,37.46683061]
[1737965480238,0.03021549,225.81,225.8,37.46683061]
[1737965480536,4.428,225.94,225.81,4.4303]
[1737965480933,0.02847683,225.83,225.81,4.4303]
[1737965481131,1.4355,225.95,225.8,37.46683061]
[1737965481336,1.4355,225.95,225.85,0.02894145]
[1737965481733,0.03241443,225.92,225.88,37.46683061]
[1737965482235,0.03241443,225.92,225.85,0.02894145]
[1737965483835,4.4289,225.89,225.85,0.02894145]
[1737965484532,0.03241443,225.92,225.85,0.02894145]
[1737965485836,0.03241443,225.92,225.88,37.46683061]
[1737965487339,0.03241443,225.92,225.85,0.02894145]
[1737965488134,4.4293,225.87,225.85,0.02894145]
[1737965488336,0.03241443,225.92,225.71,37.46683061]
[1737965488733,37.46683061,225.91,225.71,37.46683061]
[1737965488941,37.46683061,225.87,225.67,37.46683061]
[1737965489137,1.4414,225.86,225.63,42.66683061]
[1737965489342,37.46683061,225.83,225.63,42.66683061]
[1737965489543,0.03008589,225.79,225.75,4.196e-05]
[1737965489741,4.4314,225.76,225.75,4.196e-05]
[1737965491146,4.4318,225.75,225.59,37.46683061]
[1737965491542,4.431,225.79,225.63,37.46683061]
[1737965491741,1.3674,225.82,225.63,37.46683061]
[1737965492247,4.4315,225.76,225.63,37.46683061]
[1737965492448,0.03264609,225.75,225.7,0.02938307]
[1737965493146,0.03264609,225.75,225.71,37.46683061]
[1737965493748,1.3486,225.9,225.71,37.46683061]
[1737965493944,1.3486,225.9,225.7,0.02938307]
[1737965493945,1.3486,225.9,225.77,37.46683061]
[1737965494648,1.3486,225.9,225.72,37.46683061]
[1737965495047,0.02944922,225.86,225.81,0.02945827]
[1737965496149,0.02944922,225.86,225.68,37.46683061]
[1737965496348,37.46683061,225.83,225.64,37.46683061]
[1737965496548,37.46683061,225.83,225.6,37.46683061]
[1737965497246,37.46683061,225.84,225.64,37.46683061]
[1737965497448,4.4322,225.72,225.69,0.03087489]
[1737965497850,4.4322,225.72,225.6,37.46683061]
[1737965498054,0.03003243,225.73,225.68,0.02856591]
[1737965498256,37.46683061,225.92,225.69,37.46683061]
[1737965498452,1.4331,225.9,225.69,37.46683061]
[1737965498656,1.4331,225.9,225.78,0.03262894]
[1737965498953,0.03140705,225.82,225.78,0.03262894]
[1737965499654,4.4307,225.8,225.68,4.433]
[1737965499860,0.03140705,225.82,225.68,4.433]
[1737965500064,37.46683061,225.88,225.68,4.433]
[1737965500469,4.4307,225.8,225.69,4.4328]
[1737965500662,37.46683061,225.88,225.69,4.4328]
[1737965500965,0.02808947,225.77,225.72,0.03304183]
[1737965501362,1.4375,225.87,225.7,37.46683061]
[1737965501562,0.02805406,225.77,225.72,0.03216427]
[1737965501962,37.46683061,225.84,225.6,37.46683061]
[1737965502165,0.03387764,225.77,225.72,0.03095803]
[1737965502469,1.3939,225.79,225.6,37.46683061]
[1737965502666,0.03171053,225.77,225.72,0.02876572]
[1737965502866,1.4171,225.78,225.6,37.46683061]
[1737965503260,0.02920831,225.77,225.72,0.03389039]
[1737965503467,1.4171,225.78,225.6,37.46683061]
[1737965503669,0.03368788,225.77,225.72,0.02805607]
[1737965503871,1.4171,225.78,225.6,37.46683061]
[1737965504169,0.0308315,225.77,225.64,37.46683061]
[1737965504369,1.4171,225.78,225.67,0.03304362]
[1737965504570,0.03115606,225.73,225.67,0.03304362]
[1737965505070,1.4171,225.85,225.72,37.46683061]
[1737965505265,1.4375,225.87,225.72,37.46683061]
[1737965505662,1.4375,225.87,225.76,37.46683061]
[1737965505869,1.4042,225.91,225.76,37.46683061]
[1737965506069,1.3658,225.95,225.8,37.46683061]
[1737965506271,0.03185617,225.86,225.81,0.03376093]
[1737965506672,0.03185617,225.86,225.76,37.46683061]
[1737965506873,0.03185617,225.86,225.81,0.03320311]
[1737965507072,37.46683061,225.88,225.69,5.24]
[1737965507269,0.03291407,225.86,225.63,37.46683061]
[1737965507575,37.46683061,225.88,225.64,0.78227108]
[1737965507770,37.46683061,225.88,225.67,37.46683061]
[1737965507968,37.46683061,225.92,225.68,37.46683061]
[1737965508274,37.46683061,225.88,225.63,37.46683061]
[1737965508474,0.02951631,225.82,225.78,0.02962218]
[1737965508673,0.02951631,225.82,225.64,0.78225376]
[1737965508868,0.02951631,225.82,225.78,0.03231702]
[1737965509065,1.3658,225.95,225.78,0.03231702]
[1737965509368,0.03085101,225.82,225.79,37.46683061]
[1737965509671,1.3658,225.95,225.79,37.46683061]
[1737965509672,1.3658,225.95,225.83,0.0299645]
[1737965509868,1.3658,225.95,225.83,37.46683061]
[1737965510173,191.0,226.07,225.88,37.46683061]
[1737965510367,1.3902,226.06,225.88,37.46683061]
[1737965510572,2.7501,226.06,225.92,37.46683061]
[1737965510774,1.3599,226.06,225.92,37.46683061]
[1737965511072,1.3599,226.06,225.76,0.0613]
[1737965511073,0.02841149,225.99,225.95,0.03262139]
[1737965511568,0.03383462,225.99,225.95,0.03059495]
[1737965513164,0.03383462,225.99,225.96,37.46683061]
[1737965513969,0.03383462,225.99,225.95,0.03059495]
[1737965514572,0.03383462,225.99,225.96,37.46683061]
[1737965514773,1.3536,226.16,225.96,37.46683061]
[1737965515071,1.3536,226.16,226.04,37.46683061]
[1737965515870,0.03018462,226.12,226.08,0.03154415]
[1737965517972,0.03018462,226.12,225.97,37.46683061]
[1737965518269,1.3536,226.16,225.97,37.46683061]
[1737965518470,1.3536,226.16,226.01,37.46683061]
[1737965519178,0.03406905,226.11,226.06,0.02873523]
[1737965520874,0.03406905,226.11,226.09,37.46683061]
[1737965521178,192.3994,226.23,226.09,37.46683061]
[1737965521373,1.3994,226.23,226.09,37.46683061]
[1737965522180,0.02879456,226.18,226.14,0.02914897]
[1737965524875,0.02879456,226.18,226.0,37.46683061]
[1737965525182,37.46683061,226.12,225.91,37.46683061]
[1737965525483,37.46683061,226.08,225.87,37.46683061]
[1737965526085,191.0,226.1,225.91,37.46683061]
[1737965526279,0.02859606,226.01,225.97,0.0294076]